fUST/lending_fUST_20240124
["ID","MTS","AMOUNT","RATE_DAILY","PERIOD"]
[312593540,1706041848561,-1400.01,0.00041369,31]
[312593541,1706041848570,-771.2,0.00041369,31]
[312593542,1706041848579,-500.0,0.00041369,31]
[312593543,1706041848588,-500.0,0.00041369,31]
[312593544,1706041848597,-503.5681238,0.00041369,31]
[312593545,1706041848606,-500.0,0.00041369,31]
[312593546,1706041848616,-502.85656565,0.00041369,31]
[312593547,1706041848625,-500.0,0.00041369,31]
[312593548,1706041848634,-2698.38,0.00041369,31]
[312593549,1706041848643,-500.0,0.00041369,31]
[312593550,1706041848652,-1369.59,0.00041369,31]
[312593551,1706041848661,-299.34730605,0.00041369,31]
[312593552,1706041848670,-3557.63,0.00041369,31]
[312593553,1706041848680,-507.45262644,0.00041369,31]
[312593554,1706041848689,-1335.76,0.00041369,31]
[312593555,1706041848698,-235.35443455,0.00041369,31]
[312593556,1706041848707,-500.0,0.00041369,31]
[312593557,1706041848716,-500.0,0.00041369,31]
[312593558,1706041848726,-3538.1,0.00041369,31]
[312593559,1706041848735,-500.0,0.00041369,31]
[312593560,1706041848743,-594.02777711,0.00041369,31]
[312593561,1706041848753,-500.0,0.00041369,31]
[312593562,1706041848762,-507.75743553,0.00041369,31]
[312593563,1706041848772,-705.53,0.00041369,31]
[312593564,1706041848781,-762.22,0.00041369,31]
[312593565,1706041848790,-500.0,0.00041369,31]
[312593566,1706041848799,-500.0,0.00041369,31]
[312593567,1706041848808,-500.0,0.00041369,31]
[312593568,1706041848818,-500.0,0.00041369,31]
[312593569,1706041848827,-500.0,0.00041369,31]
[312593570,1706041848838,-2889.57,0.00041369,31]
[312593571,1706041848848,-500.0,0.00041369,31]
[312593572,1706041848858,-222.85393327,0.00041369,31]
[312593573,1706041848869,-500.0,0.00041369,31]
[312593574,1706041848880,-500.0,0.00041369,31]
[312593575,1706041848890,-1798.68,0.00041369,31]
[312593576,1706041848899,-500.0,0.00041369,31]
[312593577,1706041848909,-10951.71,0.00041369,31]
[312593578,1706041848918,-534.03117257,0.00041369,31]
[312593579,1706041848927,-525.97,0.00041369,31]
[312593580,1706041848936,-500.0,0.00041369,31]
[312593581,1706041848945,-500.0,0.00041369,31]
[312593582,1706041848955,-500.0,0.00041369,31]
[312593583,1706041848963,-500.0,0.00041369,31]
[312593584,1706041848972,-500.0,0.00041369,31]
[312593585,1706041848981,-501.30599879,0.00041369,31]
[312593586,1706041848990,-811.17,0.00041369,31]
[312593587,1706041848999,-301.06657067,0.00041369,31]
[312593588,1706041849008,-500.0,0.00041369,31]
[312593589,1706041849018,-783.66,0.00041369,31]
[312593590,1706041849027,-1574.5,0.00041369,31]
[312593591,1706041849036,-1000.0,0.00041369,2]
[312593592,1706041849045,-500.0,0.00041369,31]
[312593593,1706041849053,-500.0,0.00041369,31]
[312593594,1706041849062,-1411.58,0.00041369,31]
[312593595,1706041849071,-500.0,0.00041369,31]
[312593596,1706041849081,-517.53,0.00041369,31]
[312593597,1706041849089,-500.0,0.00041369,31]
[312593598,1706041849098,-27230.4,0.00041369,14]
[312593599,1706041849107,-500.0,0.00041369,31]
[312593600,1706041849116,-500.0,0.00041369,31]
[312593601,1706041849125,-1666.77,0.00041369,31]
[312593602,1706041849134,-500.0,0.00041369,31]
[312593603,1706041849143,-500.0,0.00041369,31]
[312593604,1706041849152,-587.10076292,0.00041369,31]
[312593605,1706041849161,-1637.84,0.00041369,31]
[312593606,1706041849170,-504.53830446,0.00041369,31]
[312593607,1706041849179,-500.0,0.00041369,31]
[312593608,1706041849187,-698.21,0.00041369,31]
[312593609,1706041849197,-959.88,0.00041369,31]
[312593610,1706041849206,-500.0,0.00041369,31]
[312593611,1706041849215,-501.983632,0.00041369,31]
[312593612,1706041849224,-515.33,0.00041369,31]
[312593613,1706041849233,-585.0,0.00041369,31]
[312593614,1706041849243,-500.0,0.00041369,31]
[312593615,1706041849252,-500.0,0.00041369,31]
[312593616,1706041849261,-849.47,0.00041369,31]
[312593617,1706041849270,-519.03062123,0.00041369,31]
[312593618,1706041849279,-500.0,0.00041369,31]
[312593619,1706041849288,-500.0,0.00041369,31]
[312593620,1706041849297,-500.0,0.00041369,31]
[312593621,1706041849306,-500.0,0.00041369,31]
[312593622,1706041849316,-636.8,0.00041369,31]
[312593623,1706041849324,-500.0,0.00041369,31]
[312593624,1706041849334,-533.75,0.00041369,31]
[312593625,1706041849343,-710.71,0.00041369,31]
[312593626,1706041849352,-500.0,0.00041369,31]
[312593627,1706041849362,-500.0,0.00041369,31]
[312593628,1706041849371,-500.0,0.00041369,31]
[312593629,1706041849381,-500.0,0.00041369,31]
[312593630,1706041849390,-500.0,0.00041369,31]
[312593631,1706041849399,-500.0,0.00041369,31]
[312593632,1706041849411,-1926.34,0.00041369,31]
[312593633,1706041849420,-4351.43,0.00041369,31]
[312593634,1706041849429,-699.11,0.00041369,31]
[312593635,1706041849438,-151.0,0.00041369,7]
[312593636,1706041849447,-152.725525,0.00041369,7]
[312593637,1706041849458,-1514.621105,0.00041369,7]
[312593638,1706041849467,-1514.621105,0.00041369,7]
[312593639,1706041849476,-240.49139,0.00041369,7]
[312593640,1706041849487,-240.49139,0.00041369,7]
[312593641,1706041849496,-240.49139,0.00041369,7]
[312593642,1706041849505,-240.49139,0.00041369,7]
[312593643,1706041849515,-240.49139,0.00041369,7]
[312593644,1706041849524,-240.49139,0.00041369,7]
[312593645,1706041849533,-240.49139,0.00041369,7]
[312593646,1706041849542,-240.49139,0.00041369,7]
[312593647,1706041849550,-151.0,0.00041369,7]
[312593648,1706041849560,-151.0,0.00041369,7]
[312593649,1706041849569,-151.0,0.00041369,7]
[312593650,1706041849579,-151.0,0.00041369,7]
[312593651,1706041849588,-151.0,0.00041369,7]
[312593652,1706041849597,-825.016884,0.00041369,7]
[312593653,1706041849675,-825.016884,0.00041369,7]
[312593654,1706041849685,-825.016884,0.00041369,7]
[312593655,1706041849694,-825.016884,0.00041369,7]
[312593656,1706041849703,-825.016884,0.00041369,7]
[312593657,1706041849712,-825.016884,0.00041369,7]
[312593658,1706041849722,-825.016884,0.00041369,7]
[312593659,1706041849731,-825.016884,0.00041369,7]
[312593660,1706041849740,-151.0,0.00041369,7]
[312593661,1706041849749,-151.0,0.00041369,7]
[312593662,1706041849758,-151.0,0.00041369,7]
[312593663,1706041849767,-151.0,0.00041369,7]
[312593664,1706041849777,-3315.696444,0.00041369,7]
[312593665,1706041849786,-3315.696444,0.00041369,7]
[312593666,1706041849795,-3315.696444,0.00041369,7]
[312593667,1706041849804,-3315.696444,0.00041369,7]
[312593668,1706041849814,-3315.696444,0.00041369,7]
[312593669,1706041849822,-3315.696444,0.00041369,7]
[312593670,1706041849832,-3315.696444,0.00041369,7]
[312593671,1706041849841,-3315.696444,0.00041369,7]
[312593672,1706041849850,-262.402861,0.00041369,7]
[312593673,1706041849858,-262.402861,0.00041369,7]
[312593674,1706041849869,-262.402861,0.00041369,7]
[312593675,1706041849880,-262.402861,0.00041369,7]
[312593676,1706041849890,-262.402861,0.00041369,7]
[312593677,1706041849899,-262.402861,0.00041369,7]
[312593678,1706041849909,-262.402861,0.00041369,7]
[312593679,1706041849920,-262.402861,0.00041369,7]
[312593680,1706041849929,-166.60491387,0.00041426,30]
[312593681,1706041849938,-151.45185766,0.00041434,30]
[312593682,1706041849947,-777.0,0.000415,4]
[312593683,1706041849957,-157.88520022,0.00041535,30]
[312593684,1706041849966,-166.60491387,0.00041619,30]
[312593685,1706041849976,-166.60491387,0.0004163,30]
[312593686,1706041849984,-500.0,0.00041643,31]
[312593687,1706041849994,-500.0,0.00041643,31]
[312593688,1706041850003,-500.0,0.00041643,31]
[312593689,1706041850012,-500.0,0.00041643,7]
[312593690,1706041850022,-500.0,0.00041643,31]
[312593691,1706041850031,-500.0,0.00041643,31]
[312593692,1706041850041,-500.0,0.00041643,31]
[312593693,1706041850051,-500.0,0.00041643,31]
[312593694,1706041850060,-500.0,0.00041643,31]
[312593695,1706041850070,-966.82,0.00041643,31]
[312593696,1706041850079,-180.19374953,0.00041643,2]
[312593697,1706041850089,-500.0,0.00041643,7]
[312593698,1706041850097,-500.0,0.00041643,31]
[312593699,1706041850106,-503.94267412,0.00041643,31]
[312593700,1706041850115,-500.0,0.00041643,31]
[312593701,1706041850125,-1132.27,0.00041643,31]
[312593702,1706041850134,-265.363701,0.00041643,14]
[312593703,1706041850144,-500.0,0.00041643,7]
[312593704,1706041850153,-760.42,0.00041643,31]
[312593705,1706041850162,-507.84132599,0.00041643,31]
[312593706,1706041850173,-500.0,0.00041643,31]
[312593707,1706041850182,-500.0,0.00041643,31]
[312593708,1706041850192,-500.0,0.00041643,31]
[312593709,1706041850201,-200.0,0.00041643,31]
[312593710,1706041850211,-500.0,0.00041643,31]
[312593711,1706041850220,-500.0,0.00041643,31]
[312593712,1706041850230,-285.44001471,0.00041643,31]
[312593713,1706041850239,-597.98,0.00041643,31]
[312593714,1706041850248,-500.0,0.00041643,31]
[312593715,1706041850257,-500.0,0.00041643,31]
[312593716,1706041850267,-623.2,0.00041643,31]
[312593717,1706041850276,-500.0,0.00041643,31]
[312593718,1706041850285,-224.00404875,0.00041643,31]
[312593719,1706041850295,-762.23,0.00041643,31]
[312593720,1706041850305,-500.0,0.00041643,31]
[312593721,1706041850314,-500.0,0.00041643,31]
[312593722,1706041850324,-500.0,0.00041643,31]
[312593723,1706041850333,-500.0,0.00041643,2]
[312593724,1706041850342,-905.67,0.00041643,31]
[312593725,1706041850352,-151.57120095,0.00041643,31]
[312593726,1706041850361,-500.0,0.00041643,31]
[312593727,1706041850370,-500.0,0.00041643,31]
[312593728,1706041850380,-500.0,0.00041643,31]
[312593729,1706041850389,-500.0,0.00041643,31]
[312593730,1706041850403,-500.0,0.00041643,7]
[312593731,1706041850412,-500.0,0.00041643,31]
[312593732,1706041850421,-500.0,0.00041643,31]
[312593733,1706041850431,-500.0,0.00041643,31]
[312593734,1706041850441,-500.0,0.00041643,31]
[312593735,1706041850450,-500.0,0.00041643,31]
[312593736,1706041850459,-528.32,0.00041643,31]
[312593737,1706041850470,-500.0,0.00041643,31]
[312593738,1706041850484,-500.0,0.00041643,31]
[312593739,1706041850494,-500.0,0.00041643,31]
[312593740,1706041850503,-500.0,0.00041643,31]
[312593741,1706041850512,-500.0,0.00041643,31]
[312593742,1706041850521,-500.0,0.00041643,31]
[312593743,1706041850531,-500.0,0.00041643,31]
[312593744,1706041850540,-241.36365196,0.00041643,31]
[312593745,1706041850549,-507.04,0.00041643,31]
[312593746,1706041850559,-500.0,0.00041643,31]
[312593747,1706041850568,-500.0,0.00041643,31]
[312593748,1706041850577,-1127.34,0.00041643,31]
[312593749,1706041850587,-518.86282913,0.00041643,31]
[312593750,1706041850596,-500.0,0.00041643,31]
[312593751,1706041850605,-500.0,0.00041643,31]
[312593752,1706041850614,-500.0,0.00041643,31]
[312593753,1706041850623,-500.0,0.00041643,31]
[312593754,1706041850632,-486.77105883,0.00041643,31]
[312593755,1706041850642,-500.0,0.00041643,31]
[312593756,1706041850652,-500.0,0.00041643,31]
[312593757,1706041850664,-500.0,0.00041643,31]
[312593758,1706041850672,-500.0,0.00041643,31]
[312593759,1706041850681,-500.0,0.00041643,31]
[312593760,1706041850691,-500.0,0.00041643,31]
[312593761,1706041850700,-502.23335856,0.00041643,31]
[312593762,1706041850710,-500.0,0.00041643,31]
[312593763,1706041850719,-500.0,0.00041643,31]
[312593764,1706041850729,-500.0,0.00041643,31]
[312593765,1706041850738,-1000.0,0.00041643,2]
[312593766,1706041850747,-500.0,0.00041643,31]
[312593767,1706041850757,-500.0,0.00041643,31]
[312593768,1706041850767,-500.0,0.00041643,31]
[312593769,1706041850777,-500.0,0.00041643,31]
[312593770,1706041850793,-500.0,0.00041643,31]
[312593771,1706041850808,-583.15360398,0.00041643,31]
[312593772,1706041850826,-208.68099468,0.00041643,31]
[312593773,1706041850844,-213.77792659,0.00041643,31]
[312593774,1706041850856,-500.0,0.00041643,31]
[312593775,1706041850865,-500.0,0.00041643,31]
[312593776,1706041850874,-502.36,0.00041643,31]
[312593777,1706041850883,-500.0,0.00041643,31]
[312593778,1706041850892,-500.0,0.00041643,31]
[312593779,1706041850901,-503.52906368,0.00041643,31]
[312593780,1706041850910,-500.0,0.00041643,31]
[312593781,1706041850919,-500.0,0.00041643,31]
[312593782,1706041850928,-500.0,0.00041643,31]
[312593783,1706041850937,-500.0,0.00041643,31]
[312593784,1706041850945,-500.0,0.00041643,31]
[312593785,1706041850955,-1850.43,0.00041643,31]
[312593786,1706041850965,-537.86,0.00041643,31]
[312593787,1706041850974,-671.22,0.00041643,31]
[312593788,1706041850982,-500.0,0.00041643,31]
[312593789,1706041850991,-500.0,0.00041643,31]
[312593790,1706041851000,-312.10216984,0.00041643,31]
[312593791,1706041851077,-500.0,0.00041643,31]
[312593792,1706041851087,-500.0,0.00041643,31]
[312593793,1706041851096,-500.0,0.00041643,31]
[312593794,1706041851105,-500.0,0.00041643,31]
[312593795,1706041851114,-500.0,0.00041643,31]
[312593796,1706041851122,-637.29,0.00041643,31]
[312593797,1706041851131,-500.0,0.00041643,31]
[312593798,1706041851140,-1000.0,0.00041643,2]
[312593799,1706041851149,-500.0,0.00041643,31]
[312593800,1706041851158,-500.0,0.00041643,31]
[312593801,1706041851167,-597.5274217,0.00041643,31]
[312593802,1706041851176,-500.0,0.00041643,31]
[312593803,1706041851184,-1000.0,0.00041643,2]
[312593804,1706041851193,-500.0,0.00041643,31]
[312593805,1706041851203,-400.76743036,0.00041643,31]
[312593806,1706041851213,-1822.93,0.00041643,2]
[312593807,1706041851222,-500.0,0.00041643,31]
[312593808,1706041851231,-500.0,0.00041643,31]
[312593809,1706041851240,-500.0,0.00041643,31]
[312593810,1706041851249,-500.0,0.00041643,31]
[312593811,1706041851258,-500.0,0.00041643,31]
[312593812,1706041851267,-500.0,0.00041643,31]
[312593813,1706041851276,-500.0,0.00041643,31]
[312593814,1706041851285,-500.0,0.00041643,31]
[312593815,1706041851294,-767.27,0.00041643,31]
[312593816,1706041851302,-500.0,0.00041643,31]
[312593817,1706041851312,-500.0,0.00041643,31]
[312593818,1706041851321,-500.0,0.00041643,31]
[312593819,1706041851330,-500.0,0.00041643,31]
[312593820,1706041851340,-500.0,0.00041643,31]
[312593821,1706041851349,-500.0,0.00041643,31]
[312593822,1706041851359,-500.0,0.00041643,31]
[312593823,1706041851369,-1004.32568427,0.00041643,5]
[312593824,1706041851384,-500.0,0.00041643,31]
[312593825,1706041851395,-534.62835977,0.00041643,31]
[312593826,1706041851406,-500.0,0.00041643,31]
[312593827,1706041851416,-500.0,0.00041643,31]
[312593828,1706041851426,-852.25,0.00041643,31]
[312593829,1706041851436,-509.65047196,0.00041643,31]
[312593830,1706041851446,-500.0,0.00041643,31]
[312593831,1706041851455,-501.94403874,0.00041643,31]
[312593832,1706041851465,-500.0,0.00041643,31]
[312593833,1706041851474,-387.2492246,0.00041643,31]
[312593834,1706041851484,-500.0,0.00041643,31]
[312593835,1706041851494,-517.63130353,0.00041643,31]
[312593836,1706041851504,-500.0,0.00041643,31]
[312593837,1706041851514,-500.0,0.00041643,31]
[312593838,1706041851523,-500.0,0.00041643,31]
[312593839,1706041851533,-502.71475331,0.00041643,31]
[312593840,1706041851542,-500.0,0.00041643,31]
[312593841,1706041851552,-775.99,0.00041643,31]
[312593842,1706041851560,-500.0,0.00041643,31]
[312593843,1706041851569,-524.44,0.00041643,20]
[312593844,1706041851579,-500.0,0.00041643,31]
[312593845,1706041851588,-500.0,0.00041643,31]
[312593846,1706041851598,-569.72237711,0.00041643,31]
[312593847,1706041851607,-500.0,0.00041643,31]
[312593848,1706041851616,-500.0,0.00041643,31]
[312593849,1706041851626,-661.63,0.00041643,31]
[312593850,1706041851635,-1224.28,0.00041643,31]
[312593851,1706041851645,-500.0,0.00041643,31]
[312593852,1706041851654,-500.0,0.00041643,31]
[312593853,1706041851664,-500.0,0.00041643,31]
[312593854,1706041851673,-671.04,0.00041643,31]
[312593855,1706041851682,-821.18,0.00041643,31]
[312593856,1706041851691,-500.0,0.00041643,31]
[312593857,1706041851700,-504.42578945,0.00041643,31]
[312593858,1706041851712,-500.0,0.00041643,31]
[312593859,1706041851721,-500.0,0.00041643,31]
[312593860,1706041851730,-500.0,0.00041643,31]
[312593861,1706041851739,-500.0,0.00041643,31]
[312593862,1706041851748,-500.0,0.00041643,31]
[312593863,1706041851758,-500.0,0.00041643,31]
[312593864,1706041851768,-879.9,0.00041643,31]
[312593865,1706041851777,-500.0,0.00041643,31]
[312593866,1706041851786,-500.0,0.00041643,31]
[312593867,1706041851795,-500.0,0.00041643,31]
[312593868,1706041851804,-289.91051665,0.00041643,31]
[312593869,1706041851814,-500.0,0.00041643,31]
[312593870,1706041851823,-500.0,0.00041643,2]
[312593871,1706041851832,-760.01,0.00041643,31]
[312593872,1706041851842,-3130.62,0.00041643,31]
[312593873,1706041851852,-500.0,0.00041643,31]
[312593874,1706041851861,-150.0,0.00041643,31]
[312593875,1706041851870,-515.7,0.00041643,31]
[312593876,1706041851879,-1379.9,0.00041643,31]
[312593877,1706041851889,-500.0,0.00041643,31]
[312593878,1706041851898,-1336.33,0.00041643,31]
[312593879,1706041851907,-922.17,0.00041643,31]
[312593880,1706041851917,-500.0,0.00041643,31]
[312593881,1706041851926,-500.0,0.00041643,31]
[312593882,1706041851935,-500.0,0.00041643,31]
[312593883,1706041851945,-3933.27,0.00041643,31]
[312593884,1706041851954,-500.0,0.00041643,31]
[312593885,1706041851964,-500.0,0.00041643,31]
[312593886,1706041851973,-500.0,0.00041643,31]
[312593887,1706041851983,-500.0,0.00041643,31]
[312593888,1706041851993,-500.0,0.00041643,31]
[312593889,1706041852002,-500.0,0.00041643,31]
[312593890,1706041852012,-500.0,0.00041643,31]
[312593891,1706041852022,-500.0,0.00041643,31]
[312593892,1706041852032,-500.0,0.00041643,31]
[312593893,1706041852041,-301.31584025,0.00041643,31]
[312593894,1706041852051,-577.52,0.00041643,31]
[312593895,1706041852061,-259.76762901,0.00041643,31]
[312593896,1706041852071,-500.0,0.00041643,31]
[312593897,1706041852080,-200.0,0.00041643,31]
[312593898,1706041852089,-464.20167144,0.00041643,31]
[312593899,1706041852099,-500.0,0.00041643,31]
[312593900,1706041852109,-665.87,0.00041643,31]
[312593901,1706041852118,-500.0,0.00041643,31]
[312593902,1706041852127,-528.41103692,0.00041643,31]
[312593903,1706041852136,-956.77,0.00041643,31]
[312593904,1706041852144,-920.61,0.00041643,31]
[312593905,1706041852154,-500.0,0.00041643,31]
[312593906,1706041852163,-500.0,0.00041643,31]
[312593907,1706041852172,-500.0,0.00041643,31]
[312593908,1706041852181,-500.0,0.00041643,31]
[312593909,1706041852190,-915.24,0.00041643,31]
[312593910,1706041852200,-500.0,0.00041643,31]
[312593911,1706041852209,-500.0,0.00041643,31]
[312593912,1706041852219,-717.45,0.00041643,31]
[312593913,1706041852228,-500.0,0.00041643,31]
[312593914,1706041852238,-2457.77,0.00041643,31]
[312593915,1706041852247,-500.0,0.00041643,31]
[312593916,1706041852256,-509.19883967,0.00041643,31]
[312593917,1706041852266,-500.0,0.00041643,31]
[312593918,1706041852275,-1895.37,0.00041643,31]
[312593919,1706041852284,-1400.01,0.00041643,31]
[312593920,1706041852359,-771.2,0.00041643,31]
[312593921,1706041852368,-500.0,0.00041643,31]
[312593922,1706041852378,-500.0,0.00041643,31]
[312593923,1706041852387,-500.0,0.00041643,31]
[312593924,1706041852398,-500.0,0.00041643,31]
[312593925,1706041852409,-2698.38,0.00041643,31]
[312593926,1706041852418,-500.0,0.00041643,31]
[312593927,1706041852428,-1369.59,0.00041643,31]
[312593928,1706041852438,-3557.63,0.00041643,31]
[312593929,1706041852447,-1335.76,0.00041643,31]
[312593930,1706041852456,-500.0,0.00041643,31]
[312593931,1706041852465,-500.0,0.00041643,31]
[312593932,1706041852474,-3538.1,0.00041643,31]
[312593933,1706041852484,-500.0,0.00041643,31]
[312593934,1706041852493,-500.0,0.00041643,31]
[312593935,1706041852503,-705.53,0.00041643,31]
[312593936,1706041852512,-762.22,0.00041643,31]
[312593937,1706041852522,-500.0,0.00041643,31]
[312593938,1706041852531,-532.31391101,0.00041643,31]
[312593939,1706041852540,-500.0,0.00041643,31]
[312593940,1706041852549,-500.0,0.00041643,31]
[312593941,1706041852558,-500.0,0.00041643,31]
[312593942,1706041852568,-2889.57,0.00041643,31]
[312593943,1706041852577,-500.0,0.00041643,31]
[312593944,1706041852586,-500.0,0.00041643,31]
[312593945,1706041852595,-500.0,0.00041643,31]
[312593946,1706041852605,-1798.68,0.00041643,31]
[312593947,1706041852614,-503.43961795,0.00041643,31]
[312593948,1706041852624,-10951.71,0.00041643,31]
[312593949,1706041852633,-525.97,0.00041643,31]
[312593950,1706041852644,-500.0,0.00041643,31]
[312593951,1706041852653,-500.0,0.00041643,31]
[312593952,1706041852664,-500.0,0.00041643,31]
[312593953,1706041852673,-500.0,0.00041643,31]
[312593954,1706041852683,-500.0,0.00041643,31]
[312593955,1706041852694,-811.17,0.00041643,31]
[312593956,1706041852704,-500.0,0.00041643,31]
[312593957,1706041852716,-1574.5,0.00041643,31]
[312593958,1706041852726,-783.66,0.00041643,31]
[312593959,1706041852737,-1000.0,0.00041643,2]
[312593960,1706041852746,-500.0,0.00041643,31]
[312593961,1706041852755,-500.0,0.00041643,31]
[312593962,1706041852764,-1411.58,0.00041643,31]
[312593963,1706041852774,-500.0,0.00041643,31]
[312593964,1706041852784,-517.53,0.00041643,31]
[312593965,1706041852794,-500.0,0.00041643,31]
[312593966,1706041852803,-27230.4,0.00041643,14]
[312593967,1706041852813,-500.0,0.00041643,31]
[312593968,1706041852822,-503.33976141,0.00041643,31]
[312593969,1706041852831,-1666.77,0.00041643,31]
[312593970,1706041852841,-500.0,0.00041643,31]
[312593971,1706041852851,-514.23179972,0.00041643,31]
[312593972,1706041852860,-1637.84,0.00041643,31]
[312593973,1706041852869,-500.0,0.00041643,31]
[312593974,1706041852879,-698.21,0.00041643,31]
[312593975,1706041852888,-959.88,0.00041643,31]
[312593976,1706041852898,-500.0,0.00041643,31]
[312593977,1706041852907,-585.0,0.00041643,31]
[312593978,1706041852917,-500.0,0.00041643,31]
[312593979,1706041852926,-500.0,0.00041643,31]
[312593980,1706041852936,-849.47,0.00041643,31]
[312593981,1706041852948,-515.33,0.00041643,31]
[312593982,1706041852960,-500.0,0.00041643,31]
[312593983,1706041852969,-500.0,0.00041643,31]
[312593984,1706041852980,-503.69946943,0.00041643,31]
[312593985,1706041852990,-500.0,0.00041643,31]
[312593986,1706041853001,-636.8,0.00041643,31]
[312593987,1706041853011,-500.0,0.00041643,31]
[312593988,1706041853020,-533.75,0.00041643,31]
[312593989,1706041853030,-710.71,0.00041643,31]
[312593990,1706041853040,-545.235161,0.00041643,31]
[312593991,1706041853049,-500.0,0.00041643,31]
[312593992,1706041853059,-500.0,0.00041643,31]
[312593993,1706041853068,-500.0,0.00041643,31]
[312593994,1706041853078,-500.0,0.00041643,31]
[312593995,1706041853088,-1926.34,0.00041643,31]
[312593996,1706041853097,-500.0,0.00041643,31]
[312593997,1706041853106,-4351.43,0.00041643,31]
[312593998,1706041853115,-699.11,0.00041643,31]
[312593999,1706041853125,-1514.621105,0.00041643,7]
[312594000,1706041853134,-1514.621105,0.00041643,7]
[312594001,1706041853144,-1514.621105,0.00041643,7]
[312594002,1706041853153,-1514.621105,0.00041643,7]
[312594003,1706041853162,-240.49139,0.00041643,7]
[312594004,1706041853171,-240.49139,0.00041643,7]
[312594005,1706041853181,-240.49139,0.00041643,7]
[312594006,1706041853191,-240.4914,0.00041643,7]
[312594007,1706041853200,-151.0,0.00041643,7]
[312594008,1706041853210,-825.016884,0.00041643,7]
[312594009,1706041853219,-825.016885,0.00041643,7]
[312594010,1706041853228,-151.0,0.00041643,7]
[312594011,1706041853238,-3315.696444,0.00041643,7]
[312594012,1706041853247,-3315.696436,0.00041643,7]
[312594013,1706041853256,-262.402861,0.00041643,7]
[312594014,1706041853266,-262.402857,0.00041643,7]
[312594015,1706041853275,-166.60491387,0.00041685,30]
[312594016,1706041853284,-166.60491387,0.00041781,30]
[312594017,1706041853293,-155.80532899,0.00041818,30]
[312594018,1706041853302,-166.60491387,0.0004183,30]
[312594019,1706041853312,-166.60491387,0.00041833,30]
[312594020,1706041853321,-166.60491387,0.00041859,30]
[312594021,1706041853330,-1514.621105,0.00041917,7]
[312594022,1706041853339,-1514.621105,0.00041917,7]
[312594023,1706041853348,-1514.621105,0.00041917,7]
[312594024,1706041853357,-1514.621105,0.00041917,7]
[312594025,1706041853366,-500.0,0.00041917,31]
[312594026,1706041853375,-500.0,0.00041917,31]
[312594027,1706041853385,-500.0,0.00041917,7]
[312594028,1706041853395,-500.0,0.00041917,31]
[312594029,1706041853404,-500.0,0.00041917,31]
[312594030,1706041853416,-351.50553932,0.00041917,31]
[312594031,1706041853425,-500.0,0.00041917,31]
[312594032,1706041853434,-500.0,0.00041917,31]
[312594033,1706041853443,-966.82,0.00041917,31]
[312594034,1706041853453,-500.0,0.00041917,7]
[312594035,1706041853464,-500.0,0.00041917,31]
[312594036,1706041853474,-500.0,0.00041917,31]
[312594037,1706041853484,-1132.27,0.00041917,31]
[312594038,1706041853559,-760.42,0.00041917,31]
[312594039,1706041853569,-500.0,0.00041917,7]